fUSD/lending_fUSD_20250103
["ID","MTS","AMOUNT","RATE_DAILY","PERIOD"]
[347500102,1735882238436,-150.0,9.497e-05,2]
[347500104,1735882238445,-3221.75,9.497e-05,2]
[347500106,1735882238455,-150.0,9.498e-05,2]
[347500108,1735882238463,-150.0,9.498e-05,2]
[347500109,1735882238472,-5571.8226,9.498e-05,2]
[347500112,1735882238485,-1962.8378,9.498e-05,2]
[347500113,1735882238494,-500.0,9.5e-05,3]
[347500115,1735882238503,-150.0,9.501e-05,2]
[347500117,1735882238513,-150.0,9.502e-05,2]
[347500120,1735882238522,-150.0,9.502e-05,2]
[347500122,1735882238532,-150.0,9.505e-05,2]
[347500124,1735882238541,-150.0,9.508e-05,2]
[347500126,1735882238551,-150.0,9.508e-05,2]
[347500128,1735882238560,-150.0,9.512e-05,2]
[347500130,1735882238569,-150.0,9.515e-05,2]
[347500131,1735882238579,-150.0,9.515e-05,2]
[347500133,1735882238588,-150.0,9.517e-05,2]
[347500135,1735882238597,-150.0,9.517e-05,2]
[347500137,1735882238607,-150.0,9.518e-05,2]
[347500139,1735882238616,-150.0,9.518e-05,2]
[347500141,1735882238625,-150.0,9.529e-05,2]
[347500142,1735882238633,-150.0,9.529e-05,2]
[347500144,1735882238641,-150.0,9.53e-05,2]
[347500145,1735882238651,-150.0,9.531e-05,2]
[347500146,1735882238661,-150.0,9.535e-05,2]
[347500147,1735882238670,-150.0,9.54e-05,2]
[347500148,1735882238680,-150.0,9.541e-05,2]
[347500149,1735882238689,-150.0,9.544e-05,2]
[347500150,1735882238699,-150.0,9.545e-05,2]
[347500151,1735882238708,-502.64,9.551e-05,2]
[347500152,1735882238718,-491.98,9.551e-05,2]
[347500153,1735882238731,-497.7,9.551e-05,2]
[347500154,1735882238745,-492.05,9.551e-05,2]
[347500155,1735882238755,-150.0,9.551e-05,2]
[347500156,1735882238765,-150.0,9.555e-05,2]
[347500157,1735882238775,-1200.37570421,9.557e-05,2]
[347500158,1735882238784,-3511.157,9.559e-05,2]
[347500159,1735882238796,-171.162,9.559e-05,2]
[347500160,1735882238805,-150.0,9.561e-05,2]
[347500161,1735882238815,-150.0,9.564e-05,2]
[347500162,1735882238824,-1500.0,9.564e-05,2]
[347500163,1735882238834,-150.0,9.564e-05,2]
[347500164,1735882238844,-150.0,9.565e-05,2]
[347500165,1735882238853,-150.0,9.568e-05,2]
[347500166,1735882238863,-213.52354535,9.573e-05,2]
[347500167,1735882238872,-10840.3094947,9.578e-05,2]
[347500168,1735882238882,-150.0,9.585e-05,2]
[347500169,1735882238892,-150.0,9.587e-05,2]
[347500170,1735882238903,-150.0,9.589e-05,2]
[347500171,1735882238912,-150.0,9.589e-05,2]
[347500172,1735882238923,-150.0,9.589e-05,2]
[347500173,1735882238935,-150.0,9.589e-05,2]
[347500174,1735882238944,-150.0,9.589e-05,2]
[347500175,1735882238955,-3000.0,9.589e-05,2]
[347500176,1735882238965,-150.0,9.59e-05,2]
[347500177,1735882238974,-5031.86,9.595e-05,2]
[347500178,1735882238986,-754.67,9.595e-05,2]
[347500179,1735882238996,-4475.53,9.595e-05,2]
[347500180,1735882239005,-500.0,9.595e-05,2]
[347500181,1735882239013,-1175.8,9.595e-05,2]
[347500182,1735882239022,-500.0,9.595e-05,2]
[347500183,1735882239031,-1789.59,9.595e-05,2]
[347500184,1735882239040,-500.0,9.595e-05,2]
[347500185,1735882239049,-747.32,9.595e-05,2]
[347500186,1735882239058,-3884.78,9.595e-05,2]
[347500187,1735882239067,-500.0,9.595e-05,2]
[347500188,1735882239076,-1850.8,9.595e-05,2]
[347500189,1735882239085,-500.0,9.595e-05,2]
[347500190,1735882239095,-500.0,9.595e-05,2]
[347500191,1735882239105,-1220.31,9.595e-05,2]
[347500192,1735882239116,-1650.35,9.595e-05,2]
[347500193,1735882239126,-3552.51,9.595e-05,2]
[347500194,1735882239135,-3474.57,9.595e-05,2]
[347500195,1735882239145,-37180.15052409,9.596e-05,2]
[347500196,1735882239155,-4487.03900291,9.596e-05,2]
[347500197,1735882239167,-531.49199086,9.596e-05,2]
[347500198,1735882239186,-2023.13900623,9.596e-05,2]
[347500199,1735882239196,-842.49,9.596e-05,2]
[347500200,1735882239206,-47.89027394,9.596e-05,2]
[347500201,1735882239357,-2517.59972606,9.596e-05,2]
[347500202,1735882239366,-8153.47,9.596e-05,2]
[347500203,1735882239375,-741.27,9.596e-05,2]
[347500204,1735882239385,-3144.19,9.596e-05,2]
[347500205,1735882239394,-9595.09,9.596e-05,2]
[347500206,1735882239403,-4779.63,9.596e-05,2]
[347500207,1735882239412,-839.44,9.596e-05,2]
[347500208,1735882239421,-8504.38,9.596e-05,2]
[347500209,1735882239430,-31296.54,9.596e-05,2]
[347500210,1735882239439,-3936.84,9.596e-05,2]
[347500211,1735882239449,-500.0,9.596e-05,2]
[347500212,1735882239458,-602.02,9.596e-05,2]
[347500213,1735882239467,-1629.99,9.596e-05,2]
[347500214,1735882239477,-3666.85,9.596e-05,2]
[347500215,1735882239486,-8310.74,9.596e-05,2]
[347500216,1735882239496,-8244.12,9.596e-05,2]
[347500217,1735882239504,-153.727825,9.596e-05,2]
[347500218,1735882239514,-5788.37,9.596e-05,2]
[347500219,1735882239523,-5687.24,9.596e-05,2]
[347500220,1735882239532,-13775.26,9.596e-05,2]
[347500221,1735882239541,-2717.64,9.596e-05,2]
[347500222,1735882239550,-7634.36,9.596e-05,2]
[347500223,1735882239559,-152.483359,9.596e-05,2]
[347500224,1735882239568,-1384.61,9.596e-05,2]
[347500225,1735882239576,-9439.39,9.596e-05,2]
[347500226,1735882239585,-7778.15,9.596e-05,2]
[347500227,1735882239594,-9526.3,9.596e-05,2]
[347500228,1735882239602,-3294.62,9.596e-05,2]
[347500229,1735882239611,-2729.41,9.596e-05,2]
[347500230,1735882239621,-2729.41,9.596e-05,2]
[347500231,1735882239631,-11540.78,9.596e-05,2]
[347500232,1735882239640,-2243.63,9.596e-05,2]
[347500233,1735882239649,-18820.95,9.596e-05,2]
[347500234,1735882239658,-4772.15,9.596e-05,2]
[347500235,1735882239667,-5035.78,9.596e-05,2]
[347500236,1735882239676,-1788.21,9.596e-05,2]
[347500237,1735882239685,-2213.17,9.596e-05,2]
[347500238,1735882239694,-4237.0,9.596e-05,2]
[347500239,1735882239702,-3572.15,9.596e-05,2]
[347500240,1735882239711,-1135.51,9.596e-05,2]
[347500241,1735882239720,-1749.28,9.596e-05,2]
[347500242,1735882239729,-500.0,9.596e-05,2]
[347500243,1735882239738,-1926.11,9.597e-05,2]
[347500244,1735882239750,-500.0,9.597e-05,2]
[347500245,1735882239759,-654.52,9.597e-05,2]
[347500246,1735882239768,-500.0,9.597e-05,2]
[347500247,1735882239779,-500.0,9.597e-05,2]
[347500248,1735882239789,-500.0,9.597e-05,2]
[347500249,1735882239798,-500.0,9.597e-05,2]
[347500250,1735882239807,-898.97,9.597e-05,2]
[347500251,1735882239816,-500.0,9.597e-05,2]
[347500252,1735882239826,-500.0,9.597e-05,2]
[347500253,1735882239835,-500.0,9.597e-05,2]
[347500254,1735882239844,-381.78423136,9.597e-05,2]
[347500255,1735882239853,-500.0,9.597e-05,2]
[347500256,1735882239862,-1348.77,9.597e-05,2]
[347500257,1735882239871,-556.18,9.597e-05,2]
[347500258,1735882239881,-500.0,9.597e-05,2]
[347500259,1735882239890,-1313.8,9.597e-05,2]
[347500260,1735882239899,-500.0,9.597e-05,2]
[347500261,1735882239910,-542.08,9.597e-05,2]
[347500262,1735882239919,-500.0,9.597e-05,2]
[347500263,1735882239930,-1257.98,9.597e-05,2]
[347500264,1735882239941,-1464.04,9.597e-05,2]
[347500265,1735882239950,-770.39,9.597e-05,2]
[347500266,1735882239960,-500.0,9.597e-05,2]
[347500267,1735882239970,-500.0,9.597e-05,2]
[347500268,1735882239980,-612.08,9.597e-05,2]
[347500269,1735882239989,-500.0,9.597e-05,2]
[347500270,1735882239999,-500.0,9.597e-05,2]
[347500271,1735882240008,-500.0,9.597e-05,2]
[347500272,1735882240018,-521.37,9.597e-05,2]
[347500273,1735882240026,-500.0,9.597e-05,2]
[347500274,1735882240035,-500.0,9.597e-05,2]
[347500275,1735882240045,-500.0,9.597e-05,2]
[347500276,1735882240054,-500.0,9.597e-05,2]
[347500277,1735882240063,-1413.79,9.597e-05,2]
[347500278,1735882240072,-500.0,9.597e-05,2]
[347500279,1735882240082,-500.0,9.597e-05,2]
[347500280,1735882240091,-500.0,9.597e-05,2]
[347500281,1735882240100,-563.01,9.597e-05,2]
[347500282,1735882240109,-289.53006669,9.597e-05,2]
[347500283,1735882240118,-500.0,9.597e-05,2]
[347500284,1735882240129,-500.0,9.597e-05,2]
[347500285,1735882240138,-500.0,9.597e-05,2]
[347500286,1735882240147,-500.0,9.597e-05,2]
[347500287,1735882240158,-500.0,9.597e-05,2]
[347500288,1735882240168,-1655.69,9.597e-05,2]
[347500289,1735882240177,-500.0,9.597e-05,2]
[347500290,1735882240187,-500.0,9.597e-05,2]
[347500291,1735882240199,-325.83261967,9.597e-05,2]
[347500292,1735882240209,-773.68,9.597e-05,2]
[347500293,1735882240218,-500.0,9.597e-05,2]
[347500294,1735882240228,-500.0,9.597e-05,2]
[347500295,1735882240237,-500.0,9.597e-05,2]
[347500296,1735882240247,-500.0,9.597e-05,2]
[347500297,1735882240256,-500.0,9.597e-05,2]
[347500298,1735882240265,-500.0,9.597e-05,2]
[347500299,1735882240274,-500.0,9.597e-05,2]
[347500300,1735882240283,-500.0,9.597e-05,2]
[347500301,1735882240292,-849.74,9.597e-05,2]
[347500302,1735882240301,-500.0,9.597e-05,2]
[347500303,1735882240309,-500.0,9.597e-05,2]
[347500304,1735882240319,-501.50211354,9.597e-05,2]
[347500305,1735882240328,-500.0,9.597e-05,2]
[347500306,1735882240337,-500.0,9.597e-05,2]
[347500307,1735882240346,-834.05,9.597e-05,2]
[347500308,1735882240355,-1226.75908273,9.597e-05,2]
[347500309,1735882240364,-500.0,9.597e-05,2]
[347500310,1735882240373,-586.91,9.597e-05,2]
[347500311,1735882240382,-500.0,9.597e-05,2]
[347500312,1735882240392,-1842.48,9.597e-05,2]
[347500313,1735882240401,-500.0,9.597e-05,2]
[347500314,1735882240410,-1072.56,9.597e-05,2]
[347500315,1735882240420,-950.48,9.597e-05,2]
[347500316,1735882240429,-500.0,9.597e-05,2]
[347500317,1735882240438,-500.0,9.597e-05,2]
[347500318,1735882240447,-573.15,9.597e-05,2]
[347500319,1735882240456,-500.0,9.597e-05,2]
[347500320,1735882240465,-514.4,9.597e-05,2]
[347500321,1735882240474,-500.0,9.597e-05,2]
[347500322,1735882240485,-500.0,9.597e-05,2]
[347500323,1735882240494,-500.0,9.597e-05,2]
[347500324,1735882240503,-500.0,9.597e-05,2]
[347500325,1735882240512,-500.0,9.597e-05,2]
[347500326,1735882240522,-500.0,9.597e-05,2]
[347500327,1735882240530,-500.0,9.597e-05,2]
[347500328,1735882240540,-500.0,9.597e-05,2]
[347500329,1735882240549,-586.71,9.597e-05,2]
[347500330,1735882240558,-500.0,9.597e-05,2]
[347500331,1735882240566,-635.36,9.597e-05,2]
[347500332,1735882240575,-597.77,9.597e-05,2]
[347500333,1735882240584,-500.0,9.597e-05,2]
[347500334,1735882240593,-524.07,9.597e-05,2]
[347500335,1735882240602,-529.69,9.597e-05,2]
[347500336,1735882240611,-1662.07,9.597e-05,2]
[347500337,1735882240621,-835.21,9.597e-05,2]
[347500338,1735882240630,-500.0,9.597e-05,2]
[347500339,1735882240639,-500.0,9.597e-05,2]
[347500340,1735882240648,-500.0,9.597e-05,2]
[347500341,1735882240657,-500.0,9.597e-05,2]
[347500342,1735882240667,-500.0,9.597e-05,2]
[347500343,1735882240676,-500.0,9.597e-05,2]
[347500344,1735882240686,-500.0,9.597e-05,2]
[347500345,1735882240695,-500.0,9.597e-05,2]
[347500346,1735882240704,-500.0,9.597e-05,2]
[347500347,1735882240713,-706.03,9.597e-05,2]
[347500348,1735882240722,-500.0,9.597e-05,2]
[347500349,1735882240733,-500.0,9.597e-05,2]
[347500350,1735882240745,-506.63050882,9.597e-05,2]
[347500351,1735882240754,-681.64,9.597e-05,2]
[347500352,1735882240763,-500.0,9.597e-05,2]
[347500353,1735882240772,-1019.85,9.597e-05,2]
[347500354,1735882240782,-500.0,9.597e-05,2]
[347500355,1735882240791,-500.0,9.597e-05,2]
[347500356,1735882240800,-500.0,9.597e-05,2]
[347500357,1735882240809,-1288.08,9.597e-05,2]
[347500358,1735882240819,-500.0,9.597e-05,2]
[347500359,1735882240828,-500.0,9.597e-05,2]
[347500360,1735882240837,-874.2,9.597e-05,2]
[347500361,1735882240846,-500.0,9.597e-05,2]
[347500362,1735882240855,-1674.79,9.597e-05,2]
[347500363,1735882240865,-500.0,9.597e-05,2]
[347500364,1735882240875,-688.53,9.597e-05,2]
[347500365,1735882240885,-500.0,9.597e-05,2]
[347500366,1735882240894,-500.0,9.597e-05,2]
[347500367,1735882240903,-500.0,9.597e-05,2]
[347500368,1735882240912,-674.21,9.597e-05,2]
[347500369,1735882240921,-500.0,9.597e-05,2]
[347500370,1735882240931,-1868.66,9.597e-05,2]
[347500371,1735882240941,-500.0,9.597e-05,2]
[347500372,1735882240952,-500.0,9.597e-05,2]
[347500373,1735882240963,-157.118635,9.597e-05,2]
[347500374,1735882240972,-500.0,9.597e-05,2]
[347500375,1735882240982,-386.55990554,9.597e-05,2]
[347500376,1735882240991,-500.0,9.597e-05,2]
[347500377,1735882241000,-1037.53,9.597e-05,2]
[347500378,1735882241010,-511.53,9.597e-05,2]
[347500379,1735882241019,-500.0,9.597e-05,2]
[347500380,1735882241030,-500.0,9.597e-05,2]
[347500381,1735882241039,-500.0,9.597e-05,2]
[347500382,1735882241048,-628.88,9.597e-05,2]
[347500383,1735882241058,-500.0,9.597e-05,2]
[347500384,1735882241067,-500.0,9.597e-05,2]
[347500385,1735882241076,-500.0,9.597e-05,2]
[347500386,1735882241085,-2714.55,9.597e-05,2]
[347500387,1735882241358,-500.0,9.597e-05,2]
[347500388,1735882241368,-617.97,9.597e-05,2]
[347500389,1735882241377,-500.0,9.597e-05,2]
[347500390,1735882241387,-640.23,9.597e-05,2]
[347500391,1735882241398,-500.0,9.597e-05,2]
[347500392,1735882241408,-500.0,9.597e-05,2]
[347500393,1735882241417,-500.0,9.597e-05,2]
[347500394,1735882241427,-922.63,9.597e-05,2]
[347500395,1735882241436,-500.0,9.597e-05,2]
[347500396,1735882241446,-1238.51,9.597e-05,2]
[347500397,1735882241456,-500.0,9.597e-05,2]
[347500398,1735882241466,-500.0,9.597e-05,2]
[347500399,1735882241475,-500.0,9.597e-05,2]
[347500400,1735882241485,-843.6,9.597e-05,2]
[347500401,1735882241495,-1700.24,9.597e-05,2]
[347500402,1735882241504,-500.0,9.597e-05,2]
[347500403,1735882241514,-1062.16,9.597e-05,2]
[347500404,1735882241523,-500.0,9.597e-05,2]
[347500405,1735882241533,-500.0,9.597e-05,2]
[347500406,1735882241542,-500.0,9.597e-05,2]
[347500407,1735882241552,-500.0,9.597e-05,2]
[347500408,1735882241562,-500.0,9.597e-05,2]
[347500409,1735882241571,-3387.72,9.597e-05,2]
[347500410,1735882241581,-500.0,9.597e-05,2]
[347500411,1735882241590,-500.0,9.597e-05,2]
[347500412,1735882241600,-500.0,9.597e-05,2]
[347500413,1735882241610,-500.0,9.597e-05,2]
[347500414,1735882241621,-500.0,9.597e-05,2]
[347500415,1735882241631,-500.0,9.597e-05,2]
[347500416,1735882241641,-500.0,9.597e-05,2]
[347500417,1735882241650,-500.0,9.597e-05,2]
[347500418,1735882241659,-2482.87,9.597e-05,2]
[347500419,1735882241669,-500.0,9.597e-05,2]
[347500420,1735882241679,-500.0,9.597e-05,2]
[347500421,1735882241688,-500.0,9.597e-05,2]
[347500422,1735882241699,-500.0,9.597e-05,2]
[347500423,1735882241708,-1120.32,9.597e-05,2]
[347500424,1735882241718,-1174.61,9.597e-05,2]
[347500425,1735882241727,-3282.98,9.597e-05,2]
[347500426,1735882241737,-2918.05,9.597e-05,2]
[347500427,1735882241750,-535.94,9.597e-05,2]
[347500428,1735882241760,-419.80780117,9.597e-05,2]
[347500429,1735882241770,-500.0,9.597e-05,2]
[347500430,1735882241780,-500.0,9.597e-05,2]
[347500431,1735882241790,-500.0,9.597e-05,2]
[347500432,1735882241799,-500.0,9.597e-05,2]
[347500433,1735882241808,-500.0,9.597e-05,2]
[347500434,1735882241819,-2202.09,9.597e-05,2]
[347500435,1735882241829,-500.0,9.597e-05,2]
[347500436,1735882241838,-1302.48,9.597e-05,2]
[347500437,1735882241848,-500.0,9.597e-05,2]
[347500438,1735882241857,-500.0,9.597e-05,2]
[347500439,1735882241867,-709.31,9.597e-05,2]
[347500440,1735882241876,-1019.56,9.597e-05,2]
[347500441,1735882241885,-500.0,9.597e-05,2]
[347500442,1735882241894,-500.0,9.597e-05,2]
[347500443,1735882241904,-1931.9,9.597e-05,2]
[347500444,1735882241914,-1024.59,9.597e-05,2]
[347500445,1735882241923,-1038.89,9.597e-05,2]
[347500446,1735882241932,-897.78,9.597e-05,2]
[347500447,1735882241941,-500.0,9.597e-05,2]
[347500448,1735882241952,-597.06,9.597e-05,2]
[347500449,1735882241963,-700.58,9.597e-05,2]
[347500450,1735882241974,-1610.39,9.597e-05,2]
[347500451,1735882241984,-500.0,9.597e-05,2]
[347500452,1735882241994,-932.8,9.597e-05,2]
[347500453,1735882242003,-1789.9,9.597e-05,2]
[347500454,1735882242012,-500.0,9.597e-05,2]
[347500455,1735882242022,-500.0,9.597e-05,2]
[347500456,1735882242031,-500.0,9.597e-05,2]
[347500457,1735882242041,-1809.23,9.597e-05,2]
[347500458,1735882242051,-500.0,9.597e-05,2]
[347500459,1735882242063,-500.0,9.597e-05,2]
[347500460,1735882242072,-500.0,9.597e-05,2]
[347500461,1735882242081,-500.0,9.597e-05,2]
[347500462,1735882242091,-500.0,9.597e-05,2]
[347500463,1735882242100,-1049.21,9.597e-05,2]
[347500464,1735882242110,-500.0,9.597e-05,2]
[347500465,1735882242119,-500.0,9.597e-05,2]
[347500466,1735882242129,-500.0,9.597e-05,2]
[347500467,1735882242138,-500.0,9.597e-05,2]
[347500468,1735882242147,-500.0,9.597e-05,2]
[347500469,1735882242157,-500.0,9.597e-05,2]
[347500470,1735882242167,-500.0,9.597e-05,2]
[347500471,1735882242176,-500.0,9.597e-05,2]
[347500472,1735882242186,-2122.86,9.597e-05,2]
[347500473,1735882242195,-500.0,9.597e-05,2]
[347500474,1735882242204,-500.0,9.597e-05,2]
[347500475,1735882242214,-500.0,9.597e-05,2]
[347500476,1735882242223,-911.66,9.597e-05,2]
[347500477,1735882242236,-586.97,9.597e-05,2]
[347500478,1735882242245,-2755.91,9.597e-05,2]
[347500479,1735882242255,-500.0,9.597e-05,2]
[347500480,1735882242265,-500.0,9.597e-05,2]
[347500481,1735882242275,-582.42,9.597e-05,2]
[347500482,1735882242284,-500.0,9.597e-05,2]
[347500483,1735882242294,-1320.17,9.597e-05,2]
[347500484,1735882242303,-500.0,9.597e-05,2]
[347500485,1735882242314,-1267.78,9.597e-05,2]
[347500486,1735882242323,-500.0,9.597e-05,2]
[347500487,1735882242332,-500.0,9.597e-05,2]
[347500488,1735882242342,-500.0,9.597e-05,2]
[347500489,1735882242352,-500.0,9.597e-05,2]
[347500490,1735882242361,-500.0,9.597e-05,2]
[347500491,1735882242371,-500.0,9.597e-05,2]
[347500492,1735882242381,-1017.28,9.597e-05,2]
[347500493,1735882242391,-936.86,9.597e-05,2]
[347500494,1735882242401,-500.0,9.597e-05,2]
[347500495,1735882242412,-500.0,9.597e-05,2]
[347500496,1735882242421,-500.0,9.597e-05,2]
[347500497,1735882242432,-500.0,9.597e-05,2]
[347500498,1735882242442,-512.99,9.597e-05,2]
[347500499,1735882242454,-500.0,9.597e-05,2]
[347500500,1735882242464,-500.0,9.597e-05,2]
[347500501,1735882242473,-500.83026792,9.597e-05,2]
[347500502,1735882242484,-1198.51,9.597e-05,2]
[347500503,1735882242494,-500.0,9.597e-05,2]
[347500504,1735882242504,-500.0,9.597e-05,2]
[347500505,1735882242514,-595.26,9.597e-05,2]
[347500506,1735882242523,-500.0,9.597e-05,2]
[347500507,1735882242533,-500.0,9.597e-05,2]
[347500508,1735882242543,-500.0,9.597e-05,2]
[347500509,1735882242552,-3143.79,9.597e-05,2]
[347500510,1735882242562,-500.0,9.597e-05,2]
[347500511,1735882242572,-1506.46,9.597e-05,2]
[347500512,1735882242581,-500.0,9.597e-05,2]
[347500513,1735882242590,-500.0,9.597e-05,2]
[347500514,1735882242600,-500.0,9.597e-05,2]
[347500515,1735882242609,-791.35,9.597e-05,2]
[347500516,1735882242619,-500.0,9.597e-05,2]
[347500517,1735882242630,-500.0,9.597e-05,2]
[347500518,1735882242639,-1895.68,9.597e-05,2]
[347500519,1735882242649,-671.26,9.597e-05,2]
[347500520,1735882242658,-1159.85,9.597e-05,2]
[347500521,1735882242667,-733.67,9.597e-05,2]
[347500522,1735882242677,-500.0,9.597e-05,2]
[347500523,1735882242686,-500.0,9.597e-05,2]
[347500524,1735882242695,-500.0,9.597e-05,2]
[347500525,1735882242705,-500.0,9.597e-05,2]
[347500526,1735882242714,-500.0,9.597e-05,2]
[347500527,1735882242724,-500.0,9.597e-05,2]
[347500528,1735882242735,-1431.78,9.597e-05,2]
[347500529,1735882242748,-500.0,9.597e-05,2]
[347500530,1735882242758,-500.0,9.597e-05,2]
[347500531,1735882242768,-892.75,9.597e-05,2]
[347500532,1735882242777,-500.0,9.597e-05,2]
[347500533,1735882242788,-500.0,9.597e-05,2]
[347500534,1735882242798,-500.0,9.597e-05,2]
[347500535,1735882242807,-500.0,9.597e-05,2]
[347500536,1735882242817,-806.54,9.597e-05,2]
[347500537,1735882242827,-500.0,9.597e-05,2]
[347500538,1735882242836,-1102.19,9.597e-05,2]
[347500539,1735882242846,-917.98,9.597e-05,2]
[347500540,1735882242855,-1625.54,9.597e-05,2]
[347500541,1735882242865,-598.9,9.597e-05,2]
[347500542,1735882242874,-500.0,9.597e-05,2]
[347500543,1735882242883,-554.57343114,9.597e-05,2]
[347500544,1735882242894,-500.0,9.597e-05,2]
[347500545,1735882242903,-500.0,9.597e-05,2]
[347500546,1735882242913,-500.0,9.597e-05,2]
[347500547,1735882242923,-500.0,9.597e-05,2]
[347500548,1735882242934,-2217.38,9.597e-05,2]
[347500549,1735882242943,-500.0,9.597e-05,2]
[347500550,1735882242955,-500.0,9.597e-05,2]
[347500551,1735882242964,-500.0,9.597e-05,2]
[347500552,1735882242974,-500.0,9.597e-05,2]
[347500553,1735882242985,-500.0,9.597e-05,2]
[347500555,1735882242994,-1424.98,9.597e-05,2]
[347500557,1735882243004,-675.6,9.597e-05,2]
[347500559,1735882243013,-1153.39,9.597e-05,2]
[347500560,1735882243022,-500.0,9.597e-05,2]
[347500561,1735882243031,-500.0,9.597e-05,2]
[347500562,1735882243040,-575.55,9.597e-05,2]
[347500563,1735882243050,-511.38,9.597e-05,2]
[347500564,1735882243059,-500.0,9.597e-05,2]
[347500565,1735882243068,-1366.2,9.597e-05,2]
[347500566,1735882243077,-317.39400158,9.597e-05,2]
[347500567,1735882243086,-642.73,9.597e-05,2]
[347500568,1735882243095,-500.0,9.597e-05,2]
[347500569,1735882243104,-1660.49,9.597e-05,2]
[347500570,1735882243113,-500.0,9.597e-05,2]
[347500571,1735882243123,-500.0,9.597e-05,2]
[347500572,1735882243132,-500.0,9.597e-05,2]
[347500573,1735882243141,-500.0,9.597e-05,2]
[347500575,1735882243151,-500.0,9.597e-05,2]
[347500577,1735882243160,-500.0,9.597e-05,2]
[347500578,1735882243169,-500.0,9.597e-05,2]
[347500579,1735882243178,-500.0,9.597e-05,2]
[347500580,1735882243187,-1099.17,9.597e-05,2]
[347500581,1735882243197,-500.0,9.597e-05,2]
[347500582,1735882243206,-593.12,9.597e-05,2]
[347500583,1735882243215,-500.0,9.597e-05,2]
[347500584,1735882243224,-500.0,9.597e-05,2]
[347500585,1735882243234,-500.0,9.597e-05,2]
[347500586,1735882243243,-500.0,9.597e-05,2]
[347500587,1735882243253,-1686.04,9.597e-05,2]
[347500588,1735882243262,-587.79,9.597e-05,2]
[347500589,1735882243271,-500.0,9.597e-05,2]
[347500590,1735882243280,-500.0,9.597e-05,2]
[347500591,1735882243290,-500.0,9.597e-05,2]
[347500592,1735882243299,-500.0,9.597e-05,2]
[347500593,1735882243309,-500.0,9.597e-05,2]
[347500594,1735882243319,-290.04887132,9.597e-05,2]
[347500638,1735882244068,-209.95112868,9.597e-05,2]
[347500639,1735882244078,-3484.53,9.597e-05,2]
[347500640,1735882244087,-500.0,9.597e-05,2]
[347500641,1735882244096,-500.0,9.597e-05,2]
[347500642,1735882244105,-500.0,9.597e-05,2]
[347500643,1735882244115,-500.0,9.597e-05,2]
[347500644,1735882244124,-500.0,9.597e-05,2]
[347500645,1735882244133,-890.07606969,9.597e-05,2]
[347500646,1735882245293,-218.67393031,9.597e-05,2]
[347500647,1735882245303,-93.74606969,9.597e-05,2]
[347500648,1735882245315,-406.25393031,9.597e-05,2]
[347500649,1735882245324,-29.03025415,9.597e-05,2]
[347500650,1735882245411,-487.46,9.597e-05,2]
[347500651,1735882245425,-1509.53974585,9.597e-05,2]
[347500652,1735882245435,-1934.42,9.597e-05,2]
[347500653,1735882245444,-500.0,9.597e-05,2]
[347500654,1735882245454,-1000.63,9.597e-05,2]
[347500655,1735882245464,-500.0,9.597e-05,2]
[347500656,1735882245473,-500.0,9.597e-05,2]
[347500657,1735882245482,-2222.36,9.597e-05,2]
[347500658,1735882245491,-1290.28,9.597e-05,2]
[347500659,1735882245501,-500.0,9.597e-05,2]
[347500660,1735882245510,-500.0,9.597e-05,2]
[347500661,1735882245520,-500.0,9.597e-05,2]
[347500662,1735882245530,-500.0,9.597e-05,2]
[347500663,1735882245539,-500.0,9.597e-05,2]
[347500664,1735882245549,-500.0,9.597e-05,2]
[347500665,1735882245559,-500.0,9.597e-05,2]
[347500666,1735882245571,-500.0,9.597e-05,2]
[347500667,1735882245582,-500.0,9.597e-05,2]
[347500668,1735882245591,-352.63392716,9.597e-05,2]
[347500669,1735882245601,-1870.33,9.597e-05,2]